[Event "Carolinas Classic 2022"]
[Site "Charlotte"]
[Date "2022.06.12"]
[Round "3.4"]
[White "Nguyen, James Le"]
[Black "Brodsky, David"]
[Result "0-1"]
[ECO "B52"]
[WhiteElo "1992"]
[BlackElo "2484"]
[Annotator "TA"]
[PlyCount "94"]
[EventDate "2022.06.10"]
[EventType "swiss"]
[EventCountry "USA"]
[SourceTitle "playchess.com"]
[Source "ChessBase"]
[SourceQuality "1"]
[TimeControl "5400+30"]

{[%evp 11,93,12,17,14,18,17,14,13,22,2,2,0,0,0,10,12,13,0,22,0,0,0,15,0,9,0,8,-14,13,0,13,-27,-30,-36,-29,-61,0,0,0,0,0,0,0,0,0,0,0,-61,-69,-97,-95,-85,-92,-233,-247,-300,-289,-1166,-1145,-988,-957,-1139,-1320,-1033,-342,-352,-186,-812,-781,-757,-758,-763,-815,-792,-798,-814,-779,-835,-659,-12833,-12834,-12841,-12840,-29999]} 1. e4 {[%emt 0:00:03]} c5 {[%emt 0:00:05]} 2. Nf3 {[%emt 0:00:03]} d6 {[%emt 0:00:06]} 3. Bb5+ {[%emt 0:00:03]} Bd7 {[%emt 0:00:10]} 4. Bxd7+ {[%emt 0:00:03]} Qxd7 {[%emt 0:00:05]} 5. c4 {[%emt 0:00:03]} e5 {[%emt 0:00:10]} 6. Nc3 {[%emt 0:00:16]} Nc6 {[%emt 0:00:06]} 7. a3 {[%emt 0:01:06] B52: Sicilian: Moscow Variation with 3...Bd7.} g6 {[%emt 0:04:42]} 8. O-O {[%emt 0:05:48]} Bg7 {[%emt 0:00:18]} 9. b4 {[%emt 0:01:20] The position is equal.} Nge7 {[%emt 0:00:22]} 10. b5 {[%emt 0:03:38]} Nd4 {[%emt 0:01:31] [#]} 11. Nxd4 $146 {[%emt 0:03:23]} ({Predecessor:} 11. d3 O-O 12. a4 f5 13. Nxd4 exd4 14. Nd5 fxe4 15. dxe4 Nxd5 16. exd5 Rf7 17. Qd3 {½-½ (29) Dzierzak,R (2203)-Janus,P (2104) Krakow 2015}) 11... cxd4 {[%emt 0:05:01]} 12. Nd5 {[%emt 0:08:41]} f5 {[%emt 0:01:53]} 13. Nxe7 {[%emt 0:01:46]} Qxe7 {[%emt 0:00:10]} 14. f3 {[%emt 0:03:15]} Bh6 {[%emt 0:07:33]} 15. d3 {[%emt 0:02:07]} Bxc1 {[%emt 0:02:27]} 16. Rxc1 {[%emt 0:00:39]} O-O {[%emt 0:01:24]} 17. Qb3 {[%emt 0:02:08]} Kg7 {[%emt 0:01:12]} 18. Qb4 {[%emt 0:02:54]} Rac8 {[%emt 0:07:43]} 19. a4 {[%emt 0:03:36]} Rf7 {[%emt 0:03:09]} 20. Qa5 {[%emt 0:10:48]} Qg5 {[%emt 0:07:52] White must now prevent ...fxe4.} 21. f4 {[%emt 0:05:10]} exf4 {[%emt 0:00:25][%cal Of4f3]} 22. Qxa7 {[%emt 0:01:11]} Rc5 $1 {[%emt 0:01:47]} 23. h4 {[%emt 0:06:26]} Qxh4 {[%emt 0:02:33]} (23... Qg3 $1 $15 24. Rf3 Qxh4 25. exf5 Qe7) 24. exf5 $11 {[%emt 0:06:24]} Qg5 $40 {[%emt 0:07:36][%mdl 128] Black has some attack.} 25. Rce1 {[%emt 0:01:58]} Qg3 {[%emt 0:00:56]} 26. Re4 {[%emt 0:09:23]} Qxd3 {[%emt 0:00:38]} (26... gxf5 27. Re8 Re5 28. Qxd4 Qe3+ 29. Qxe3 Rxe3 30. Rxe3 fxe3 31. Rf3 $16) 27. Rexf4 {[%emt 0:00:22]} ({But not} 27. f6+ $2 Kh6 28. Rexf4 Qe3+ 29. R1f2 Rxc4 $19) 27... Rcxf5 {[%emt 0:10:57]} 28. Rxf5 {[%emt 0:00:26]} gxf5 {[%emt 0:00:05][%mdl 4096] Endgame KQR-KQR} 29. Rf3 {[%emt 0:03:08]} (29. Qb6 $11) 29... Qxc4 $15 {[%emt 0:02:02] Black is more active.} 30. Rg3+ {[%emt 0:00:55]} Kf6 {[%emt 0:00:48] And now ...Re7 would win.} 31. Qb8 {[%emt 0:01:45]} Ke5 {[%emt 0:08:12] aiming for ...Rf6.} 32. Qh8+ {[%emt 0:05:54] [#] This move loses the game for White.} (32. b6 $17) 32... Kd5 $1 $19 {[%emt 0:00:26]} 33. Qg8 {[%emt 0:02:58]} Kc5 {[%emt 0:00:23]} 34. Qc8+ $2 {[%emt 0:00:18]} (34. Qg5) 34... Kb4 {[%emt 0:00:30]} 35. Qd8 {[%emt 0:01:18]} Qc1+ {[%emt 0:03:05]} 36. Kh2 {[%emt 0:00:14]} Qf4 {[%emt 0:01:44]} 37. Qg8 {[%emt 0:00:20] Inhibits Rg7.} Qh4+ $2 {[%emt 0:03:53]} (37... Rc7 {Strongly threatening ...Rc3.} 38. Qb3+ Ka5) 38. Kg1 {[%emt 0:00:42] [#]} Qf6 {[%emt 0:00:13]} ({Weaker is} 38... Kxa4 39. Qa8+ Kb4 40. Qa3+ Kc4 41. Re3 $11) (38... d5 $142 $1 {...Re7 is the strong threat.} 39. Rh3 (39. Rf3 Qe1+) 39... Qe1+ 40. Kh2 Qe5+ 41. Kg1 Rc7 42. Qf8+ Qe7) 39. Qc8 $2 {[%emt 0:01:04]} (39. a5) 39... Qe5 {[%emt 0:00:42]} 40. Rf3 {[%emt 0:01:20]} Re7 {[%emt 0:02:45] Threatens to win with ...d3.} 41. Qc2 {[%emt 0:00:46]} Qe1+ {[%emt 0:00:36]} 42. Rf1 {[%emt 0:01:20]} Qc3 {[%emt 0:04:30]} 43. Qb1+ {[%emt 0:00:29]} Qb3 {[%emt 0:00:09] Hoping for ...Qxb1.} 44. Qxf5 {[%emt 0:00:54]} Qe3+ {[%emt 0:01:17]} 45. Kh1 {[%emt 0:00:31]} Re6 {[%emt 0:02:34]} 46. Rb1+ {[%emt 0:01:09]} Kc3 {[%emt 0:00:44] ( -> ...Rh6+)} 47. Qf1 {[%emt 0:04:50]} Rh6# {[%emt 0:00:06] Weighted Error Value: White=0.63/Black=0.20 (precise)} 0-1

[Event "Carolinas Classic 2022"]
[Site "Charlotte"]
[Date "2022.06.12"]
[Round "3.5"]
[White "Espinosa, Pedro"]
[Black "Ippolito, Dean"]
[Result "0-1"]
[ECO "D00"]
[WhiteElo "2019"]
[BlackElo "2375"]
[Annotator "TA"]
[PlyCount "68"]
[EventDate "2022.06.10"]
[EventType "swiss"]
[EventCountry "USA"]
[SourceTitle "playchess.com"]
[Source "ChessBase"]
[SourceQuality "1"]
[TimeControl "5400+30"]

{[%evp 9,68,7,9,0,0,0,0,0,0,-15,0,0,0,-8,0,-22,0,0,0,12,-12,0,21,45,19,0,0,-38,-33,-27,-31,-59,0,-87,0,-62,-54,-275,-251,-250,-264,-279,-272,-335,-331,-326,-331,-437,-345,-468,-355,-318,-315,-678,-652,-743,-740,-845,-832,-815,-792]} 1. d4 {[%emt 0:03:04]} d5 {[%emt 0:00:58]} 2. Nc3 {[%emt 0:00:07]} Nf6 {[%emt 0:00:16]} 3. Bf4 {[%emt 0:00:06]} g6 {[%emt 0:00:21]} 4. e3 {[%emt 0:00:18]} Bg7 {[%emt 0:00:31]} 5. Nb5 {[%emt 0:00:12]} Na6 {[%emt 0:00:20]} 6. h3 {[%emt 0:00:09] D00: 1 d4 d5: Unusual lines.} O-O {[%emt 0:01:40]} 7. Nf3 {[%emt 0:00:25]} Ne4 {[%emt 0:01:35]} 8. Be2 {[%emt 0:01:35] The position is equal.} c6 {[%emt 0:00:43]} 9. Nc3 {[%emt 0:00:25]} Qa5 {[%emt 0:02:08][%cal Oa6c5]} 10. O-O {[%emt 0:00:14]} Nxc3 {[%emt 0:01:29]} 11. bxc3 {[%emt 0:00:02]} Qxc3 {[%emt 0:00:40]} 12. Rb1 {[%emt 0:00:05] [#]} Qa5 $146 {[%emt 0:06:19]} ({Predecessor:} 12... c5 13. Qc1 Qa5 14. Rb5 Qd8 15. c4 b6 16. cxd5 Nb4 17. e4 a6 18. Bc7 Qxc7 19. Rxb4 {½-½ (40) Blondel,F (2029)-Cuccumini,V (1982) ICCF email 2018}) 13. c4 {[%emt 0:04:19]} dxc4 {[%emt 0:00:43]} 14. Bxc4 {[%emt 0:00:41]} b5 {[%emt 0:00:36]} 15. Bd3 {[%emt 0:13:20]} Rd8 {[%emt 0:10:54]} 16. Qc2 {[%emt 0:04:52]} Bd7 {[%emt 0:07:28][%cal Oc6c5]} 17. Rfc1 {[%emt 0:03:02][%cal Oa2a4]} (17. Ne5 {is more complex.} Bxe5 18. Bxe5 c5 19. Be4) 17... Rac8 {[%emt 0:02:45]} 18. Ne5 {[%emt 0:04:17]} Bxe5 {[%emt 0:02:56]} ({Resist} 18... Nb4 19. Qc3 Bxe5 20. Bxe5 $16) 19. Bxe5 {[%emt 0:00:28][%cal Oa2a4]} c5 {[%emt 0:00:22]} 20. Qb2 {[%emt 0:02:18][%cal Rd3b5]} c4 {[%emt 0:09:55]} (20... Nb4 $1 $15 21. Be4 Qxa2) 21. Be4 {[%emt 0:03:11] [#]} (21. Bf1 $11) 21... Qb6 {[%emt 0:00:19]} (21... c3 $1 $17 {[%cal Rc3b2]} 22. Qc2 b4) 22. Qe2 {[%emt 0:10:26]} (22. a3 $1 $11) 22... Bc6 $15 {[%emt 0:03:57]} 23. d5 $2 {[%emt 0:12:04] This costs White the game.} ({White should play} 23. Bc2 $15) 23... Bxd5 $19 {[%emt 0:00:59]} 24. Bxd5 {[%emt 0:04:23]} Rxd5 {[%emt 0:00:04]} 25. Bd4 {[%emt 0:00:08]} Qe6 {[%emt 0:10:03] ...Rxd4 is the strong threat.} 26. Qf3 {[%emt 0:03:31]} Qd7 {[%emt 0:01:42]} 27. Bc3 {[%emt 0:08:01]} Nc5 {[%emt 0:04:04]} 28. Rd1 {[%emt 0:03:10]} Rd3 {[%emt 0:05:45]} 29. Bd4 {[%emt 0:01:03]} Ne6 {[%emt 0:02:06]} 30. Rxd3 {[%emt 0:01:47]} cxd3 {[%emt 0:00:06][%cal Bc4d3,Bd3d2][%mdl 32]} 31. Bb2 {[%emt 0:00:33]} (31. Rd1 Nxd4 32. exd4) 31... Rc2 {[%emt 0:03:39] Black is clearly winning.} 32. Qa8+ {[%emt 0:03:38]} Nf8 {[%emt 0:03:13] Strongly threatening ...d2.} 33. Qe4 {[%emt 0:01:45] [#]} Rxb2 $1 {[%emt 0:02:18]} 34. Rxb2 {[%emt 0:00:09]} d2 {[%emt 0:00:04] Weighted Error Value: White=0.58/Black=0.14 (very precise)} 0-1

[Event "Carolinas Classic 2022"]
[Site "Charlotte"]
[Date "2022.06.12"]
[Round "4.1"]
[White "Brodsky, David"]
[Black "Naroditsky, Daniel"]
[Result "1/2-1/2"]
[ECO "C07"]
[WhiteElo "2484"]
[BlackElo "2616"]
[Annotator "TA"]
[PlyCount "62"]
[EventDate "2022.06.10"]
[EventType "swiss"]
[EventCountry "USA"]
[SourceTitle "playchess.com"]
[Source "ChessBase"]
[SourceQuality "1"]
[TimeControl "5400+30"]

{[%evp 9,62,20,20,8,18,12,8,14,15,11,10,11,9,10,24,14,27,16,42,38,40,20,32,0,25,10,12,-48,-47,-43,-43,-56,-52,-51,-50,-56,-24,-27,-6,-33,0,-14,0,-91,0,0,0,0,0,0,0,0,0,0,0]} 1. e4 {[%emt 0:00:02]} e6 {[%emt 0:06:23]} 2. d4 {[%emt 0:00:14]} d5 {[%emt 0:00:20]} 3. Nd2 {[%emt 0:00:15][%cal Bb1d2,Bd2b3,Bb3d4][%mdl 32]} c5 {[%emt 0:00:16]} 4. Ngf3 {[%emt 0:00:09]} Nf6 {[%emt 0:00:28]} 5. exd5 {[%emt 0:00:33]} Nxd5 {[%emt 0:00:42]} 6. Nb3 {[%emt 0:00:29] C07: French Tarrasch: 3...c5, 4 Ngf3 and 4 exd5 Qxd5.} cxd4 {[%emt 0:00:13]} 7. Nbxd4 {[%emt 0:00:13]} Bb4+ {[%emt 0:01:01]} 8. Bd2 {[%emt 0:00:05]} ({Reject} 8. c3 Nxc3 $1 9. Qc2 Nb5+ 10. Bd2 Nxd4 $17) 8... O-O {[%emt 0:00:57][%cal Oe6e5]} 9. Bxb4 {[%emt 0:01:11]} Nxb4 {[%emt 0:01:46]} 10. c3 {[%emt 0:00:16]} N4c6 {[%emt 0:09:50]} 11. Bc4 {[%emt 0:00:25] [#]} Nxd4 $146 {[%emt 0:01:25]} ({Predecessor:} 11... e5 12. Nb5 Nd7 13. Nd6 Nb6 14. Bb3 Qe7 15. Nxc8 Raxc8 16. O-O a5 17. a4 Rcd8 {0-1 (55) Baskin,R (2392)-Diaz Camallonga,C (2463) Chess.com INT 2021}) 12. Qxd4 {[%emt 0:00:12]} Qxd4 {[%emt 0:07:59]} 13. Nxd4 {[%emt 0:01:22]} Bd7 {[%emt 0:03:21]} 14. O-O-O {[%emt 0:07:44]} Nc6 {[%emt 0:07:59][%cal Bb8c6,Bc6e7,Be7f5,Bf5d6][%mdl 32]} 15. Nb5 {[%emt 0:06:07]} Rfd8 {[%emt 0:02:23]} 16. Nd6 {[%emt 0:04:20]} Rab8 {[%emt 0:00:20]} 17. Rd2 {[%emt 0:12:54]} Ne7 {[%emt 0:03:07]} 18. Nf5 {[%emt 0:08:20]} Nxf5 $15 {[%emt 0:01:54]} 19. Rhd1 {[%emt 0:00:30]} b5 {[%emt 0:00:02]} ({Don't take} 19... Rdc8 20. Rxd7 a5 21. Be2 $14) 20. Bxb5 {[%emt 0:05:55]} Rxb5 {[%emt 0:00:16]} 21. Rxd7 {[%emt 0:00:04]} Rxd7 {[%emt 0:11:41]} 22. Rxd7 {[%emt 0:00:09][%cal Rd7d8][%mdl 4096] Endgame KRN-KR} Kf8 {[%emt 0:09:05] ...Ra5 is the strong threat.} 23. Rxa7 {[%emt 0:00:07]} Nd6 {[%emt 0:02:42]} 24. a4 {[%emt 0:01:53]} Re5 {[%emt 0:03:08]} 25. a5 {[%emt 0:09:52]} Ke8 {[%emt 0:00:36]} 26. a6 {[%emt 0:09:22] [#]} (26. b4 $11) 26... Ra5 {[%emt 0:02:58]} ({Better is} 26... Rc5 $1 $17) 27. b4 $1 $11 {[%emt 0:00:39] The position is equal.} Ra3 {[%emt 0:00:57]} 28. Kb2 {[%emt 0:01:31]} Nc4+ {[%emt 0:00:34]} 29. Kc2 {[%emt 0:00:10]} Nd6 {[%emt 0:01:26]} 30. Kb2 {[%emt 0:00:50]} Nc4+ {[%emt 0:00:58]} 31. Kc2 {[%emt 0:00:07]} Nd6 {[%emt 0:01:43] Weighted Error Value: White=0.16 (very precise) /Black=0.11 (very precise)} 1/2-1/2

[Event "Carolinas Classic 2022"]
[Site "Charlotte"]
[Date "2022.06.12"]
[Round "4.2"]
[White "Moradiabadi, Elshan"]
[Black "Aaron, Deepak"]
[Result "1-0"]
[ECO "D35"]
[WhiteElo "2537"]
[BlackElo "2230"]
[Annotator "TA"]
[PlyCount "103"]
[EventDate "2022.06.10"]
[EventType "swiss"]
[EventCountry "USA"]
[SourceTitle "playchess.com"]
[Source "ChessBase"]
[SourceQuality "1"]
[TimeControl "5400+30"]

{[%evp 14,103,26,28,56,25,20,0,11,8,36,32,63,54,58,58,71,80,103,27,36,29,29,31,68,67,82,77,97,64,64,64,72,68,72,64,64,64,64,64,64,64,64,64,102,98,168,168,168,168,165,154,139,121,121,121,121,121,121,89,114,114,110,104,107,78,78,69,94,84,65,74,78,87,110,80,122,120,6314,6215,6187,5997,6233,6107,29974,29977,29977,29978,29978,29979,29980,29981]} 1. c4 {[%emt 0:00:01]} e6 {[%emt 0:01:05]} 2. Nc3 {[%emt 0:00:27]} d5 {[%emt 0:00:49]} 3. d4 {[%emt 0:00:01]} c6 {[%emt 0:00:58]} 4. cxd5 {[%emt 0:04:48]} exd5 {[%emt 0:03:40]} 5. Bf4 {[%emt 0:00:02]} Nf6 {[%emt 0:02:13]} 6. e3 {[%emt 0:02:58]} Be7 {[%emt 0:01:11]} 7. Bd3 {[%emt 0:00:28]} O-O {[%emt 0:01:02] 7...Bg4 deserves study.} 8. Qc2 {[%emt 0:00:04]} Na6 {[%emt 0:09:25][%cal Bb8a6,Ba6c7,Bc7e6][%mdl 32] D35: Queen's Gambit Declined: Exchange Variation.} 9. a3 {[%emt 0:08:01] Inhibits Nb4.} (9. Bxa6 $5 bxa6 10. h3 $11) 9... Nc7 {[%emt 0:09:15]} 10. Nge2 {[%emt 0:06:34]} Ne6 {[%emt 0:03:02] The position is equal.} 11. Be5 {[%emt 0:00:01] [#]} h6 $146 {[%emt 0:05:52]} ({Predecessor:} 11... g6 12. h3 Ng7 13. O-O Bf5 14. Ng3 Bxd3 15. Qxd3 Nd7 16. Bxg7 Kxg7 17. Nge2 Nb6 18. b3 Bd6 19. a4 a5 20. g3 Qe7 21. Kg2 Rae8 {½-½ (21) Boudre,J (2304)-Delorme,L (2215) Creon 2011}) 12. h3 {[%emt 0:03:38]} Bd7 {[%emt 0:06:05]} 13. O-O {[%emt 0:03:09]} Rc8 {[%emt 0:02:54]} 14. b4 {[%emt 0:01:47]} Be8 {[%emt 0:15:32]} 15. Rac1 {[%emt 0:06:28]} a5 {[%emt 0:05:26]} 16. Qb3 {[%emt 0:02:02]} ({White should try} 16. Ng3 $16) 16... axb4 {[%emt 0:10:58]} 17. axb4 {[%emt 0:00:01][%cal Ba3b4,Bb4b5][%mdl 32]} Nd7 {[%emt 0:00:38]} 18. Bg3 {[%emt 0:00:03]} Nb6 {[%emt 0:01:06]} 19. Rfd1 {[%emt 0:04:38]} Ra8 {[%emt 0:04:32]} 20. b5 {[%emt 0:08:13]} Ra3 {[%emt 0:02:20]} 21. Qb1 {[%emt 0:00:37]} Na4 {[%emt 0:02:25]} 22. bxc6 {[%emt 0:01:33]} Nxc3 {[%emt 0:02:55]} 23. Rxc3 {[%emt 0:01:55]} Bxc6 {[%emt 0:00:20]} 24. Rxa3 {[%emt 0:01:54]} Bxa3 {[%emt 0:00:01]} 25. Qb3 {[%emt 0:00:08]} Bd6 {[%emt 0:01:47]} 26. Ra1 {[%emt 0:05:47]} Qd7 {[%emt 0:01:33]} 27. Bf5 {[%emt 0:00:47]} Bxg3 {[%emt 0:01:20]} 28. Nxg3 {[%emt 0:00:01]} b5 {[%emt 0:01:05]} 29. Ne2 {[%emt 0:01:00][%cal Bg3e2,Be2f4,Bf4d3][%mdl 32] 0x0.0008607c6c27dp-1022s more active pieces.} Ra8 {[%emt 0:01:08]} (29... Qe7 $16) 30. Rxa8+ $18 {[%emt 0:02:53]} Bxa8 {[%emt 0:00:01]} 31. Bxe6 {[%emt 0:00:07]} fxe6 {[%emt 0:00:13][%mdl 4096] Endgame KQB-KQN} 32. Nf4 {[%emt 0:00:01]} Bc6 {[%emt 0:03:07]} 33. Nd3 {[%emt 0:00:08]} Qd6 {[%emt 0:00:40]} 34. Qc3 {[%emt 0:00:01]} Bd7 {[%emt 0:01:01]} 35. Qa5 {[%emt 0:00:22] [#] aiming for Qd8+.} Be8 {[%emt 0:01:28]} 36. Qa7 {[%emt 0:01:06] Prevents Qb8.} Kh7 {[%emt 0:00:24]} 37. Qb7 {[%emt 0:00:30]} Qc6 {[%emt 0:00:42]} 38. Qe7 {[%emt 0:00:17]} Qd7 {[%emt 0:00:25]} 39. Qxd7 {[%emt 0:03:38]} Bxd7 $16 {[%emt 0:00:01] KB-KN} 40. Kf1 {[%emt 0:00:04]} Be8 {[%emt 0:00:52]} 41. Ke1 {[%emt 0:00:02]} Kg6 {[%emt 0:00:38]} 42. Kd2 {[%emt 0:00:15]} Kf6 {[%emt 0:00:32]} 43. Kc3 {[%emt 0:00:55]} Ke7 {[%emt 0:00:23]} 44. Kb4 {[%emt 0:00:08]} Kd6 {[%emt 0:00:09]} 45. Ne5 {[%emt 0:00:11]} Bc6 $2 {[%emt 0:00:39][%mdl 8192] [#] This costs Black the game.} (45... Bh5 $16) 46. Nxc6 $18 {[%emt 0:03:14]} Kxc6 {[%emt 0:00:01] KP-KP} 47. Ka5 {[%emt 0:00:05]} g6 {[%emt 0:00:46]} 48. h4 {[%emt 0:00:30]} g5 {[%emt 0:00:59]} 49. hxg5 {[%emt 0:00:10] White mates.} hxg5 {[%emt 0:00:01]} 50. g4 {[%emt 0:00:06]} b4 {[%emt 0:00:44]} 51. Kxb4 {[%emt 0:00:12]} Kb6 {[%emt 0:00:03]} 52. f4 {[%emt 0:00:15] Weighted Error Value: White=0.09 (flawless) /Black=0.30} 1-0

[Event "Carolinas Classic 2022"]
[Site "Charlotte"]
[Date "2022.06.12"]
[Round "4.3"]
[White "Ippolito, Dean"]
[Black "Shabalov, Alexander"]
[Result "1/2-1/2"]
[ECO "D30"]
[WhiteElo "2375"]
[BlackElo "2504"]
[Annotator "TA"]
[PlyCount "51"]
[EventDate "2022.06.10"]
[EventType "swiss"]
[EventCountry "USA"]
[SourceTitle "playchess.com"]
[Source "ChessBase"]
[SourceQuality "1"]
[TimeControl "5400+30"]

{[%evp 15,51,0,16,12,10,11,20,16,16,14,18,24,23,0,71,64,79,72,91,105,109,94,94,83,76,48,31,0,0,0,0,0,0,0,0,0,0,0]} 1. d4 {[%emt 0:00:03]} d5 {[%emt 0:00:39]} 2. c4 {[%emt 0:00:07]} c6 {[%emt 0:00:05]} 3. Nf3 {[%emt 0:01:56]} Nf6 {[%emt 0:00:15]} 4. Qb3 {[%emt 0:05:58]} e6 {[%emt 0:00:37]} 5. g3 {[%emt 0:00:36]} dxc4 {[%emt 0:02:18]} 6. Qxc4 {[%emt 0:00:06]} b5 {[%emt 0:00:03]} 7. Qb3 {[%emt 0:00:32]} Bb7 {[%emt 0:01:22]} 8. Bg2 {[%emt 0:00:06]} Nbd7 {[%emt 0:00:05]} 9. Ne5 {[%emt 0:08:06] D30: Queen's Gambit Declined: Systems without Nc3.} Nxe5 {[%emt 0:01:29]} 10. dxe5 {[%emt 0:00:04]} Nd7 {[%emt 0:00:06]} 11. Nc3 {[%emt 0:13:19]} Be7 {[%emt 0:04:26]} 12. O-O {[%emt 0:02:09]} O-O {[%emt 0:00:12]} 13. Rd1 {[%emt 0:02:47]} Qc7 {[%emt 0:01:45]} 14. Bf4 {[%emt 0:08:30][%cal Bc1f4,Bf4e3,Be3c5][%mdl 32] [#]} g5 $146 {[%emt 0:12:59]} (14... Nc5 $11 15. Qc2 a5) ({Predecessor:} 14... Nc5 15. Qc2 b4 16. Nb1 Ba6 17. Bf3 Rac8 18. a3 Rb8 19. axb4 Rxb4 20. Be3 Qb7 {1-0 (49) Caruana,F (2822)-Duda,J (2758) Wijk aan Zee 2020}) 15. Be3 $16 {[%emt 0:00:12]} Nxe5 {[%emt 0:01:04]} 16. Rac1 {[%emt 0:01:37][%cal Oc3b5]} a6 {[%emt 0:28:56]} 17. Ne4 {[%emt 0:05:05] Against c5} g4 {[%emt 0:01:38]} 18. Bc5 {[%emt 0:07:18] White is more active.} Rad8 {[%emt 0:03:09]} 19. Qe3 {[%emt 0:04:43]} Rd5 {[%emt 0:10:57]} 20. Rxd5 {[%emt 0:25:49]} exd5 {[%emt 0:01:02]} (20... cxd5 $2 {[#]} 21. Bd6 $1 Qd8 22. Bc7 $18 (22. Bxe5 dxe4 23. Bxe4 Bg5 $11)) 21. Bd6 {[%emt 0:01:59]} Bxd6 {[%emt 0:02:05] The position is equal.} 22. Nf6+ {[%emt 0:01:35]} Kg7 $1 {[%emt 0:00:37]} 23. Qg5+ {[%emt 0:01:36]} Ng6 $1 {[%emt 0:00:05]} (23... Kh8 $2 {gets mated.} 24. Qh6) 24. Nh5+ $1 {[%emt 0:00:11]} Kg8 {[%emt 0:00:04]} 25. Nf6+ {[%emt 0:00:59]} Kg7 $1 {[%emt 0:00:06]} (25... Kh8 $2 {is a self mate.} 26. Qh6 Ne7 27. Qxh7#) 26. Nh5+ $1 {[%emt 0:03:28] Weighted Error Value: White=0.06 (flawless) /Black=0.10 (very precise)} 1/2-1/2

[Event "Carolinas Classic 2022"]
[Site "Charlotte"]
[Date "2022.06.12"]
[Round "4.4"]
[White "Snodgrass, Benjamin"]
[Black "Tay, Brian"]
[Result "0-1"]
[ECO "B59"]
[WhiteElo "2026"]
[BlackElo "1863"]
[Annotator "TA"]
[PlyCount "88"]
[EventDate "2022.06.10"]
[EventType "swiss"]
[EventCountry "USA"]
[SourceTitle "playchess.com"]
[Source "ChessBase"]
[SourceQuality "1"]
[TimeControl "5400+30"]

{[%evp 16,88,22,10,0,0,28,-32,-22,-88,-22,-48,-33,-20,0,-29,-34,-28,-34,-26,-21,-18,-29,-34,-33,-135,-133,-156,-127,-122,-124,-118,-120,-204,-208,-180,-127,-161,-141,-178,-163,-151,0,-95,-95,-75,-56,6,-104,-104,-70,-77,-77,-104,-93,-245,-239,-29979,-29980,-29980,-29981,-29981,-29982,-29985,-29981,-29981,-29982,-29982,-29983,-29983,-29984,-29984,-29985,-29982,-29982]} 1. e4 {[%emt 0:04:14]} c5 {[%emt 0:00:06]} 2. Nf3 {[%emt 0:00:04]} d6 {[%emt 0:00:04]} 3. d4 {[%emt 0:00:04]} cxd4 {[%emt 0:00:04]} 4. Nxd4 {[%emt 0:00:05]} Nf6 {[%emt 0:00:03]} 5. Nc3 {[%emt 0:00:05]} Nc6 {[%emt 0:00:06]} 6. Be2 {[%emt 0:01:14]} e5 {[%emt 0:02:54]} 7. Nb3 {[%emt 0:02:18]} Be7 {[%emt 0:00:52]} 8. Be3 {[%emt 0:03:22]} O-O {[%emt 0:01:24]} 9. g4 {[%emt 0:04:52][%cal Bg2g4,Bg4g5][%mdl 32]} Be6 {[%emt 0:02:35] B59: Classical Sicilian: 6 Be2 e5 7 Nb3.} 10. g5 $1 {[%emt 0:02:02] Inhibits h6.} Ne8 {[%emt 0:00:26]} 11. Qd2 {[%emt 0:01:52]} (11. h4 $11) 11... a5 {[%emt 0:38:55] Black is slightly better.} 12. Nc1 {[%emt 0:08:04]} (12. Nd5 $11 {keeps the balance.}) 12... a4 {[%emt 0:01:34]} (12... f5 $17 {Hoping for ...f4.} 13. exf5 Bxf5) 13. h4 {[%emt 0:21:25]} a3 {[%emt 0:06:41]} 14. b3 {[%emt 0:01:44]} Nb4 {[%emt 0:06:37]} 15. Nd3 {[%emt 0:11:22]} d5 $1 {[%emt 0:13:43]} 16. Nxd5 {[%emt 0:03:56]} (16. Nxe5 $2 d4 17. O-O-O dxe3 18. Qxd8 Rxd8 $19) 16... Nxd5 {[%emt 0:00:30]} 17. exd5 {[%emt 0:00:10]} Qxd5 {[%emt 0:03:13]} 18. O-O-O {[%emt 0:02:46][%cal Od3c5] [#]} Nd6 $146 {[%emt 0:02:00]} ({Predecessor:} 18... b5 19. Nc5 Nc7 20. Qc3 Qc6 21. Qxe5 Bd5 22. Bd4 f6 23. Qxe7 Rfe8 24. Qd7 Bxh1 25. gxf6 Qxd7 26. Nxd7 Rxe2 {0-1 (35) Butt,S (2335)-Martin Del Campo C,J (2395) Thessaloniki 1988}) 19. Nc5 {[%emt 0:07:17]} Qc6 {[%emt 0:06:58]} 20. Kb1 {[%emt 0:13:47]} (20. Nxe6 $15 fxe6 21. Bd3) 20... Rac8 $17 {[%emt 0:02:52]} 21. f3 {[%emt 0:01:51]} ({Not} 21. Nxe6 $2 Ne4 22. Qd3 Nc3+ 23. Ka1 fxe6 $19) 21... Nf5 {[%emt 0:02:04]} 22. Nxe6 {[%emt 0:02:09]} fxe6 {[%emt 0:02:49]} 23. Bf2 {[%emt 0:03:08]} Bb4 {[%emt 0:01:34]} 24. Qc1 {[%emt 0:00:11]} (24. Qd3 $17) 24... Bc3 $1 $19 {[%emt 0:01:27]} 25. Rd3 {[%emt 0:01:42]} b5 {[%emt 0:01:18]} (25... Ne7 $1 $19 26. Qd1 (26. Qxa3 $2 Nd5 $19) 26... Nd5) 26. h5 {[%emt 0:01:06]} b4 {[%emt 0:00:33]} 27. h6 {[%emt 0:00:21]} g6 {[%emt 0:00:12]} 28. Rhd1 {[%emt 0:01:02]} Rf7 $2 {[%emt 0:01:40]} ({Black should play} 28... Bd4 $17 29. Bxd4 Nxd4) 29. Rd8+ {[%emt 0:00:45] [#]} (29. Rxc3 $1 $11 {was the only way to keep the balance.} Qxc3 30. Bc4) 29... Rxd8 $1 $17 {[%emt 0:00:52] Really sharp!} 30. Rxd8+ {[%emt 0:00:06]} Rf8 {[%emt 0:00:02]} 31. Rxf8+ {[%emt 0:00:35]} (31. Qd1 $15 {was preferrable.} Nd4 32. Rxf8+ Kxf8 33. Be3) 31... Kxf8 {[%emt 0:00:02]} 32. Qd1 {[%emt 0:00:52] And now Qd8+ would win.} Bd4 {[%emt 0:01:30]} 33. Be1 {[%emt 0:01:04] Prevents Qc3.} Qc5 {[%emt 0:00:40] 0x0.00207e17e14cdp-1022s more active pieces.} 34. Qd3 {[%emt 0:00:47]} Ne3 {[%emt 0:00:23] Inhibits Qc4.} 35. Qe4 $2 {[%emt 0:00:50] Now White is beyond hope.} (35. Bd2 $17 Ke7 36. Be1) 35... Nd5 $19 {[%emt 0:00:12] White must now prevent ...Bc3.} 36. Bc4 $2 {[%emt 0:00:34] [#]} (36. c4 $19 bxc3 37. Bc4) 36... Bc3 $1 {[%emt 0:00:38] Black mates.} 37. Bxd5 {[%emt 0:00:38]} exd5 {[%emt 0:00:18] KQB-KQB} ({Weaker is} 37... Qxd5 38. Qxd5 exd5 39. Bxc3 bxc3 40. Kc1 $11) 38. Qe2 {[%emt 0:00:33]} Qg1 {[%emt 0:00:08][%csl LRe1,LRg5]} 39. f4 {[%emt 0:00:16]} Qxe1+ {[%emt 0:00:13]} 40. Qxe1 {[%emt 0:00:07]} Bxe1 {[%emt 0:00:02]} 41. fxe5 {[%emt 0:00:09]} Bc3 {[%emt 0:00:06]} 42. Kc1 {[%emt 0:00:25]} Ke7 {[%emt 0:00:03]} 43. Kd1 {[%emt 0:00:08]} Ke6 {[%emt 0:00:03]} 44. Ke2 {[%emt 0:00:04]} Kxe5 {[%emt 0:00:02] Weighted Error Value: White=0.34/Black=0.12 (very precise)} 0-1